[Event "*** Titled Tuesday Blitz"]
[Site "Chess.com"]
[Date "2018.11.06"]
[Round "10"]
[White "JonahWillow"]
[Black "RegZryt"]
[Result "1/2-1/2"]
[WhiteElo "2675"]
[BlackElo "2523"]
[TimeControl "180+2"]
[EndTime "15:20:38 PST"]
[Termination "Game drawn by agreement"]

1. e4 {[%clk 0:03:01.9]} 1... c5 {[%clk 0:02:59.7]} 2. Nf3 {[%clk 0:03:02.9]}
2... e6 {[%clk 0:03:01]} 3. d4 {[%clk 0:03:04.4]} 3... cxd4 {[%clk 0:03:02.9]}
4. Nxd4 {[%clk 0:03:06.3]} 4... Nf6 {[%clk 0:03:04.4]} 5. Nc3 {[%clk 0:03:05.5]}
5... Nc6 {[%clk 0:03:05.7]} 6. g3 {[%clk 0:03:05.9]} 6... Bb4 {[%clk 0:03:02.6]}
7. Bg2 {[%clk 0:03:06.3]} 7... d5 {[%clk 0:02:51.4]} 8. exd5 {[%clk 0:03:00.5]}
8... Nxd5 {[%clk 0:02:52.2]} 9. Nxc6 {[%clk 0:02:59.3]} 9... bxc6 {[%clk
0:02:54.1]} 10. O-O {[%clk 0:03:00]} 10... Qc7 {[%clk 0:02:55.4]} 11. Nxd5
{[%clk 0:02:59.8]} 11... cxd5 {[%clk 0:02:48.5]} 12. Bf4 {[%clk 0:03:00.3]}
12... Bd6 {[%clk 0:02:46.5]} 13. Bxd6 {[%clk 0:02:57]} 13... Qxd6 {[%clk
0:02:48.4]} 14. c4 {[%clk 0:02:57.9]} 14... O-O {[%clk 0:02:29.6]} 15. cxd5
{[%clk 0:02:56.5]} 15... Rb8 {[%clk 0:02:30.9]} 16. b3 {[%clk 0:02:53.8]} 16...
Bb7 {[%clk 0:02:23.8]} 17. dxe6 {[%clk 0:02:53.3]} 17... Qxe6 {[%clk 0:02:23.5]}
18. Re1 {[%clk 0:02:52]} 18... Qf6 {[%clk 0:02:21.1]} 19. Bxb7 {[%clk
0:02:51.9]} 19... Rxb7 {[%clk 0:02:23]} 20. Qd5 {[%clk 0:02:52.9]} 20... Re7
{[%clk 0:02:17]} 21. Rad1 {[%clk 0:02:50.2]} 21... Rxe1+ {[%clk 0:02:13.4]} 22.
Rxe1 {[%clk 0:02:52.1]} 22... Rd8 {[%clk 0:02:13]} 23. Qc5 {[%clk 0:02:48.6]}
23... a6 {[%clk 0:02:12.8]} 24. Kg2 {[%clk 0:02:25.5]} 24... h6 {[%clk
0:02:12.9]} 25. Re2 {[%clk 0:02:21.7]} 25... Rd3 {[%clk 0:02:06.9]} 26. Qc8+
{[%clk 0:02:11]} 26... Kh7 {[%clk 0:02:06.2]} 27. Qg4 {[%clk 0:02:12.6]} 27...
g6 {[%clk 0:02:04.1]} 28. Qe4 {[%clk 0:02:13.2]} 28... Rc3 {[%clk 0:02:02.8]}
29. h4 {[%clk 0:02:07.7]} 29... h5 {[%clk 0:02:03.2]} 30. Rd2 {[%clk 0:02:07]}
30... Rc1 {[%clk 0:02:00.8]} 31. Rd5 {[%clk 0:02:03.1]} 31... Kg8 {[%clk
0:01:16.5]} 32. Qe8+ {[%clk 0:02:01.9]} 32... Kh7 {[%clk 0:01:13.4]} 33. Qe4
{[%clk 0:01:58.9]} 33... Kg8 {[%clk 0:01:13.7]} 34. Qe5 {[%clk 0:01:46]} 34...
Qc6 {[%clk 0:01:14.5]} 35. Qe4 {[%clk 0:01:43.1]} 35... Qf6 {[%clk 0:01:06.2]}
36. Qf3 {[%clk 0:01:37.6]} 36... Qe6 {[%clk 0:01:01.5]} 37. Rd8+ {[%clk
0:01:28.7]} 37... Kg7 {[%clk 0:01:00.9]} 38. Rd1 {[%clk 0:01:10.2]} 38... Rc2
{[%clk 0:01:01.3]} 39. a4 {[%clk 0:01:09.6]} 39... a5 {[%clk 0:00:55.5]} 40. Qd5
{[%clk 0:01:04.8]} 40... Qe2 {[%clk 0:00:52.8]} 41. Qd4+ {[%clk 0:01:03.3]}
41... Kh7 {[%clk 0:00:53.9]} 42. Rf1 {[%clk 0:00:54]} 42... Rb2 {[%clk
0:00:51.1]} 43. Qd5 {[%clk 0:00:50.6]} 43... Kg7 {[%clk 0:00:46.7]} 44. Qxa5
{[%clk 0:00:45.3]} 44... Rxb3 {[%clk 0:00:47.3]} 45. Qd5 {[%clk 0:00:46.5]}
45... Ra3 {[%clk 0:00:40]} 46. a5 {[%clk 0:00:45.2]} 46... Qa2 {[%clk
0:00:39.8]} 47. Qe5+ {[%clk 0:00:43.5]} 47... Kh7 {[%clk 0:00:40.1]} 48. Rd1
{[%clk 0:00:34.2]} 48... Rxa5 {[%clk 0:00:40.2]} 49. Qf6 {[%clk 0:00:35.3]}
49... Rf5 {[%clk 0:00:36.7]} 50. Qd4 {[%clk 0:00:34.2]} 50... Qa8+ {[%clk
0:00:35.9]} 51. Kg1 {[%clk 0:00:33.4]} 51... Qf3 {[%clk 0:00:30.9]} 52. Re1
{[%clk 0:00:30.5]} 52... Rd5 {[%clk 0:00:31.8]} 53. Qa7 {[%clk 0:00:27.2]} 53...
Rd1 {[%clk 0:00:28.8]} 54. Rxd1 {[%clk 0:00:27.3]} 54... Qxd1+ {[%clk
0:00:30.7]} 55. Kh2 {[%clk 0:00:29]} 55... Qd5 {[%clk 0:00:31.4]} 1/2-1/2

[Event "*** Titled Tuesday Blitz"]
[Site "Chess.com"]
[Date "2018.11.06"]
[Round "10"]
[White "2165149677570"]
[Black "Makalexa"]
[Result "1-0"]
[WhiteElo "2384"]
[BlackElo "2132"]
[TimeControl "180+2"]
[EndTime "15:20:39 PST"]
[Termination "2165149677570 won by checkmate"]

1. e4 {[%clk 0:03:01.9]} 1... e5 {[%clk 0:03:00.4]} 2. Nf3 {[%clk 0:03:01.9]}
2... Nc6 {[%clk 0:03:01.7]} 3. d4 {[%clk 0:03:02.2]} 3... exd4 {[%clk
0:03:01.7]} 4. Bc4 {[%clk 0:03:03.9]} 4... Bc5 {[%clk 0:02:57.3]} 5. c3 {[%clk
0:03:03.9]} 5... Nf6 {[%clk 0:02:57]} 6. e5 {[%clk 0:03:04.6]} 6... d5 {[%clk
0:02:36.5]} 7. Bb5 {[%clk 0:02:56]} 7... Ne4 {[%clk 0:02:36.8]} 8. cxd4 {[%clk
0:02:56.8]} 8... Bb6 {[%clk 0:02:36.2]} 9. O-O {[%clk 0:02:54.6]} 9... O-O
{[%clk 0:02:35.1]} 10. Nc3 {[%clk 0:02:56.1]} 10... Bg4 {[%clk 0:02:33.8]} 11.
Be3 {[%clk 0:02:51.7]} 11... Ne7 {[%clk 0:02:27.2]} 12. Be2 {[%clk 0:02:46.5]}
12... c6 {[%clk 0:02:25.5]} 13. h3 {[%clk 0:02:47.1]} 13... Bf5 {[%clk
0:02:23.6]} 14. Nh4 {[%clk 0:02:46.6]} 14... Nxc3 {[%clk 0:02:18.4]} 15. bxc3
{[%clk 0:02:45.8]} 15... Be6 {[%clk 0:02:20.3]} 16. f4 {[%clk 0:02:44]} 16... f5
{[%clk 0:02:21]} 17. Nf3 {[%clk 0:02:29.2]} 17... Rc8 {[%clk 0:02:20]} 18. a4
{[%clk 0:02:16.5]} 18... Ba5 {[%clk 0:02:14]} 19. Qb3 {[%clk 0:02:14.5]} 19...
Qd7 {[%clk 0:02:09.9]} 20. Ng5 {[%clk 0:02:04.7]} 20... h6 {[%clk 0:02:08]} 21.
Nxe6 {[%clk 0:02:06.1]} 21... Qxe6 {[%clk 0:02:08]} 22. Qxb7 {[%clk 0:02:07.6]}
22... Bb6 {[%clk 0:02:06.4]} 23. a5 {[%clk 0:02:04]} 23... Rb8 {[%clk
0:01:31.8]} 24. Qa6 {[%clk 0:02:03.5]} 24... Bc7 {[%clk 0:01:25.5]} 25. Qxa7
{[%clk 0:01:53.4]} 25... Rb2 {[%clk 0:01:25.5]} 26. Bd3 {[%clk 0:01:47.3]} 26...
Bb8 {[%clk 0:01:26]} 27. Qa6 {[%clk 0:01:44.2]} 27... Ng6 {[%clk 0:01:02]} 28.
Rfb1 {[%clk 0:01:38.2]} 28... Rxb1+ {[%clk 0:00:48.4]} 29. Rxb1 {[%clk
0:01:40.1]} 29... Nh4 {[%clk 0:00:47.3]} 30. Bf2 {[%clk 0:01:36.8]} 30... Ng6
{[%clk 0:00:45.7]} 31. c4 {[%clk 0:01:31.7]} 31... Nxf4 {[%clk 0:00:43.6]} 32.
cxd5 {[%clk 0:01:33]} 32... Qg6 {[%clk 0:00:38]} 33. g3 {[%clk 0:01:17.5]} 33...
Nxh3+ {[%clk 0:00:38.3]} 34. Kg2 {[%clk 0:01:18.1]} 34... Nxf2 {[%clk 0:00:39]}
35. Kxf2 {[%clk 0:01:11.3]} 35... Qg5 {[%clk 0:00:38.9]} 36. Qxc6 {[%clk
0:00:59.1]} 36... f4 {[%clk 0:00:39.2]} 37. g4 {[%clk 0:00:55.3]} 37... Qh4+
{[%clk 0:00:38.6]} 38. Ke2 {[%clk 0:00:44.5]} 38... f3+ {[%clk 0:00:39.1]} 39.
Kd2 {[%clk 0:00:43.7]} 39... Qf2+ {[%clk 0:00:36.1]} 40. Kc3 {[%clk 0:00:44.6]}
40... Ba7 {[%clk 0:00:36]} 41. Qc4 {[%clk 0:00:36.2]} 41... Qe3 {[%clk
0:00:32.1]} 42. d6+ {[%clk 0:00:37.4]} 42... Kh8 {[%clk 0:00:32]} 43. d7 {[%clk
0:00:38.3]} 43... f2 {[%clk 0:00:30.3]} 44. e6 {[%clk 0:00:35.8]} 44... Qe1+
{[%clk 0:00:24.9]} 45. Kc2 {[%clk 0:00:31]} 45... Qe3 {[%clk 0:00:10.9]} 46. d5
{[%clk 0:00:19.6]} 46... Bb8 {[%clk 0:00:06.4]} 47. Rxb8 {[%clk 0:00:14.4]}
47... Rxb8 {[%clk 0:00:05.8]} 48. Qc8+ {[%clk 0:00:15.9]} 48... Rxc8+ {[%clk
0:00:05.7]} 49. dxc8=Q# {[%clk 0:00:17.8]} 1-0

[Event "*** Titled Tuesday Blitz"]
[Site "Chess.com"]
[Date "2018.11.06"]
[Round "10"]
[White "severomorskij"]
[Black "jacky72"]
[Result "1-0"]
[WhiteElo "2719"]
[BlackElo "2696"]
[TimeControl "180+2"]
[EndTime "15:20:58 PST"]
[Termination "severomorskij won by checkmate"]

1. d4 {[%clk 0:03:01.9]} 1... Nf6 {[%clk 0:03:00.6]} 2. Bg5 {[%clk 0:03:02.4]}
2... Ne4 {[%clk 0:03:01.3]} 3. Bf4 {[%clk 0:03:03.3]} 3... c5 {[%clk 0:03:02.7]}
4. f3 {[%clk 0:03:04.5]} 4... Nf6 {[%clk 0:03:02.6]} 5. dxc5 {[%clk 0:03:05.4]}
5... b6 {[%clk 0:03:00.1]} 6. e4 {[%clk 0:03:04.4]} 6... bxc5 {[%clk 0:03:00.3]}
7. Nc3 {[%clk 0:03:05.6]} 7... Nc6 {[%clk 0:02:57.1]} 8. Qd2 {[%clk 0:03:04.6]}
8... g6 {[%clk 0:02:52.5]} 9. Bb5 {[%clk 0:03:01.9]} 9... Qb6 {[%clk 0:02:49.8]}
10. e5 {[%clk 0:02:53.5]} 10... Nh5 {[%clk 0:02:50.7]} 11. Nd5 {[%clk
0:02:54.3]} 11... Qb7 {[%clk 0:02:41]} 12. e6 {[%clk 0:02:39.8]} 12... fxe6
{[%clk 0:02:27.1]} 13. Nc7+ {[%clk 0:02:37.4]} 13... Kf7 {[%clk 0:02:28.6]} 14.
Bxc6 {[%clk 0:02:34.4]} 14... Qxc6 {[%clk 0:02:28.7]} 15. Nxa8 {[%clk
0:02:34.7]} 15... Qxa8 {[%clk 0:02:29.7]} 16. Be5 {[%clk 0:02:31.1]} 16... Nf6
{[%clk 0:02:25.6]} 17. Nh3 {[%clk 0:02:28.7]} 17... h6 {[%clk 0:02:19.1]} 18.
O-O {[%clk 0:02:25.2]} 18... Bg7 {[%clk 0:02:20.5]} 19. c4 {[%clk 0:02:25.9]}
19... d6 {[%clk 0:02:18.4]} 20. Bc3 {[%clk 0:02:26.5]} 20... e5 {[%clk
0:02:18.8]} 21. Nf2 {[%clk 0:02:27.6]} 21... Rf8 {[%clk 0:02:10.5]} 22. b4
{[%clk 0:02:20.5]} 22... cxb4 {[%clk 0:02:10.3]} 23. Bxb4 {[%clk 0:02:21.6]}
23... Kg8 {[%clk 0:02:08.2]} 24. Rac1 {[%clk 0:02:20.8]} 24... Bb7 {[%clk
0:01:40.9]} 25. Qe3 {[%clk 0:02:05.2]} 25... Nh5 {[%clk 0:01:39.5]} 26. c5
{[%clk 0:02:00.8]} 26... d5 {[%clk 0:01:35.8]} 27. Nd3 {[%clk 0:01:47]} 27... d4
{[%clk 0:01:30.6]} 28. Qe2 {[%clk 0:01:46.8]} 28... a5 {[%clk 0:00:55.3]} 29.
Bd2 {[%clk 0:01:33.8]} 29... Qa6 {[%clk 0:00:50.2]} 30. Rfe1 {[%clk 0:01:26.8]}
30... Rf5 {[%clk 0:00:44.5]} 31. Nf2 {[%clk 0:01:18.8]} 31... Qc6 {[%clk
0:00:42.3]} 32. Qe4 {[%clk 0:01:13.2]} 32... Rf6 {[%clk 0:00:30.3]} 33. Qxc6
{[%clk 0:01:05.6]} 33... Rxc6 {[%clk 0:00:29.3]} 34. Nd3 {[%clk 0:01:03.4]}
34... Nf6 {[%clk 0:00:20.2]} 35. Nxe5 {[%clk 0:01:02.8]} 35... Rc8 {[%clk
0:00:22.1]} 36. Nxg6 {[%clk 0:01:00.1]} 36... Kf7 {[%clk 0:00:22.8]} 37. Nxe7
{[%clk 0:00:58.9]} 37... Rc7 {[%clk 0:00:22.8]} 38. c6 {[%clk 0:00:57.6]} 38...
Ba8 {[%clk 0:00:19.6]} 39. Bxa5 {[%clk 0:00:54.6]} 39... Rxe7 {[%clk 0:00:21]}
40. Rxe7+ {[%clk 0:00:55.6]} 40... Kxe7 {[%clk 0:00:22.9]} 41. c7 {[%clk
0:00:56.8]} 41... Bb7 {[%clk 0:00:24.5]} 42. c8=Q {[%clk 0:00:57.6]} 42... Bxc8
{[%clk 0:00:25.9]} 43. Rxc8 {[%clk 0:00:59]} 43... Nd5 {[%clk 0:00:27.8]} 44.
Rc1 {[%clk 0:00:47.8]} 44... Kd6 {[%clk 0:00:18.4]} 45. Bd2 {[%clk 0:00:47.9]}
45... d3 {[%clk 0:00:18.2]} 46. a4 {[%clk 0:00:47.8]} 46... Bd4+ {[%clk
0:00:19.5]} 47. Kf1 {[%clk 0:00:47.9]} 47... h5 {[%clk 0:00:19.1]} 48. a5 {[%clk
0:00:46.6]} 48... Nc7 {[%clk 0:00:20.2]} 49. Bf4+ {[%clk 0:00:44.5]} 49... Kd5
{[%clk 0:00:21.5]} 50. Rxc7 {[%clk 0:00:44.6]} 50... Be5 {[%clk 0:00:23]} 51.
Bxe5 {[%clk 0:00:44.6]} 51... d2 {[%clk 0:00:24.5]} 52. Rd7+ {[%clk 0:00:45.2]}
52... Kxe5 {[%clk 0:00:24]} 53. Rxd2 {[%clk 0:00:46]} 53... h4 {[%clk
0:00:25.4]} 54. a6 {[%clk 0:00:46.6]} 54... h3 {[%clk 0:00:26.9]} 55. a7 {[%clk
0:00:47.4]} 55... hxg2+ {[%clk 0:00:27.8]} 56. Kxg2 {[%clk 0:00:48.4]} 56... Kf4
{[%clk 0:00:29.1]} 57. a8=Q {[%clk 0:00:49.1]} 57... Kg5 {[%clk 0:00:30.6]} 58.
Qe4 {[%clk 0:00:49.8]} 58... Kh5 {[%clk 0:00:31.5]} 59. Qf5+ {[%clk 0:00:49]}
59... Kh4 {[%clk 0:00:32.2]} 60. Qg4# {[%clk 0:00:49.4]} 1-0

[Event "*** Titled Tuesday Blitz"]
[Site "Chess.com"]
[Date "2018.11.06"]
[Round "10"]
[White "Alohamora11"]
[Black "Bykov_Egor"]
[Result "1-0"]
[WhiteElo "2347"]
[BlackElo "2522"]
[TimeControl "180+2"]
[EndTime "15:21:04 PST"]
[Termination "Alohamora11 won on time"]

1. e4 {[%clk 0:02:56.9]} 1... e5 {[%clk 0:03:00.9]} 2. Nf3 {[%clk 0:02:57.7]}
2... Nc6 {[%clk 0:03:02.1]} 3. Bb5 {[%clk 0:02:59.3]} 3... a6 {[%clk 0:03:03.4]}
4. Ba4 {[%clk 0:03:00.9]} 4... Nf6 {[%clk 0:03:04.8]} 5. Bxc6 {[%clk 0:03:02.5]}
5... dxc6 {[%clk 0:03:05.8]} 6. d3 {[%clk 0:02:58.2]} 6... Nd7 {[%clk
0:03:05.5]} 7. Nbd2 {[%clk 0:02:54.6]} 7... Bd6 {[%clk 0:03:06.2]} 8. h4 {[%clk
0:02:53.7]} 8... f6 {[%clk 0:02:52.9]} 9. Nc4 {[%clk 0:02:53.1]} 9... Nc5 {[%clk
0:02:51]} 10. h5 {[%clk 0:02:50.5]} 10... Ne6 {[%clk 0:02:48.5]} 11. Nh4 {[%clk
0:02:40.9]} 11... O-O {[%clk 0:02:21.7]} 12. Ne3 {[%clk 0:02:21.1]} 12... Bb4+
{[%clk 0:02:09.9]} 13. Bd2 {[%clk 0:02:15.8]} 13... Bxd2+ {[%clk 0:02:08.7]} 14.
Qxd2 {[%clk 0:02:17.7]} 14... c5 {[%clk 0:01:51.5]} 15. O-O-O {[%clk 0:01:46.8]}
15... Rf7 {[%clk 0:01:52.3]} 16. g3 {[%clk 0:01:25.6]} 16... b5 {[%clk
0:01:44.1]} 17. Rhf1 {[%clk 0:01:20.7]} 17... Bb7 {[%clk 0:01:40]} 18. f4 {[%clk
0:01:20.5]} 18... exf4 {[%clk 0:01:40.5]} 19. gxf4 {[%clk 0:01:22.4]} 19... c4
{[%clk 0:01:42.1]} 20. Nhf5 {[%clk 0:00:57.5]} 20... cxd3 {[%clk 0:01:38.5]} 21.
cxd3 {[%clk 0:00:59.4]} 21... c5 {[%clk 0:01:38.5]} 22. Rg1 {[%clk 0:00:57.6]}
22... Kh8 {[%clk 0:01:35.9]} 23. Kb1 {[%clk 0:00:45.1]} 23... c4 {[%clk
0:01:21.9]} 24. Ka1 {[%clk 0:00:34]} 24... cxd3 {[%clk 0:01:00.7]} 25. e5 {[%clk
0:00:32.4]} 25... fxe5 {[%clk 0:00:48.9]} 26. Qc3 {[%clk 0:00:33.6]} 26... exf4
{[%clk 0:00:34.9]} 27. Nxg7 {[%clk 0:00:22.4]} 27... Nxg7 {[%clk 0:00:21.2]} 28.
h6 {[%clk 0:00:23.1]} 28... Qf6 {[%clk 0:00:20.5]} 29. hxg7+ {[%clk 0:00:24]}
29... Kg8 {[%clk 0:00:21.5]} 30. Ng4 {[%clk 0:00:21.5]} 30... Qb6 {[%clk
0:00:09.5]} 31. Qc5 {[%clk 0:00:18.1]} 31... Qe6 {[%clk 0:00:05.2]} 32. Qe5
{[%clk 0:00:17]} 32... Qc6 {[%clk 0:00:03.3]} 33. Rxd3 {[%clk 0:00:08.1]} 33...
Rc8 {[%clk 0:00:03.1]} 34. Rc3 {[%clk 0:00:08.2]} 34... Qg6 {[%clk 0:00:03.2]}
35. Rxc8+ {[%clk 0:00:08.5]} 35... Bxc8 {[%clk 0:00:04.6]} 36. Qe8+ {[%clk
0:00:09.6]} 36... Kxg7 {[%clk 0:00:06.2]} 37. Qxc8 {[%clk 0:00:09.5]} 37... f3
{[%clk 0:00:07.5]} 38. Qc3+ {[%clk 0:00:10.2]} 38... Kf8 {[%clk 0:00:06.5]} 39.
Qc8+ {[%clk 0:00:11.1]} 39... Kg7 {[%clk 0:00:07.7]} 40. Qc3+ {[%clk 0:00:11.3]}
40... Kf8 {[%clk 0:00:09.1]} 41. Qe1 {[%clk 0:00:07.6]} 41... h5 {[%clk
0:00:03.7]} 42. Nf2 {[%clk 0:00:07]} 42... Qf5 {[%clk 0:00:02.9]} 43. Qb4+
{[%clk 0:00:07.6]} 43... Re7 {[%clk 0:00:04.1]} 44. Re1 {[%clk 0:00:07]} 44...
Qg5 {[%clk 0:00:04.2]} 45. Nh3 {[%clk 0:00:03.8]} 45... f2 {[%clk 0:00:02.3]}
46. Rf1 {[%clk 0:00:02.2]} 1-0

[Event "*** Titled Tuesday Blitz"]
[Site "Chess.com"]
[Date "2018.11.06"]
[Round "10"]
[White "IvanRadivojevic"]
[Black "olksuna"]
[Result "0-1"]
[WhiteElo "2413"]
[BlackElo "2537"]
[TimeControl "180+2"]
[EndTime "15:21:46 PST"]
[Termination "olksuna won by resignation"]

1. e4 {[%clk 0:03:00.4]} 1... c5 {[%clk 0:02:59.8]} 2. Nc3 {[%clk 0:02:59.3]}
2... Nc6 {[%clk 0:03:00.2]} 3. g3 {[%clk 0:03:00.7]} 3... Rb8 {[%clk 0:03:01.3]}
4. Bg2 {[%clk 0:03:02.2]} 4... b5 {[%clk 0:03:02.4]} 5. d3 {[%clk 0:03:03.7]}
5... b4 {[%clk 0:03:03.6]} 6. Nce2 {[%clk 0:03:05.2]} 6... g6 {[%clk 0:03:04.2]}
7. f4 {[%clk 0:03:06.5]} 7... Bg7 {[%clk 0:03:05.2]} 8. Nf3 {[%clk 0:03:08]}
8... e6 {[%clk 0:03:04.9]} 9. O-O {[%clk 0:03:09.3]} 9... Nge7 {[%clk
0:03:05.5]} 10. a3 {[%clk 0:02:51.6]} 10... bxa3 {[%clk 0:03:02.5]} 11. Rxa3
{[%clk 0:02:53.5]} 11... O-O {[%clk 0:03:03]} 12. b3 {[%clk 0:02:46.4]} 12...
Qc7 {[%clk 0:02:47.1]} 13. e5 {[%clk 0:02:43]} 13... d6 {[%clk 0:02:45.5]} 14.
exd6 {[%clk 0:02:41.7]} 14... Qxd6 {[%clk 0:02:46.4]} 15. Ng5 {[%clk 0:02:35.4]}
15... Nf5 {[%clk 0:02:43.6]} 16. Ne4 {[%clk 0:02:35.5]} 16... Qe7 {[%clk
0:02:44.3]} 17. h3 {[%clk 0:02:13.3]} 17... Bb7 {[%clk 0:02:42.8]} 18. Kh2
{[%clk 0:02:14.3]} 18... a6 {[%clk 0:02:41.1]} 19. Ra4 {[%clk 0:02:12.1]} 19...
Ncd4 {[%clk 0:02:40.4]} 20. Ba3 {[%clk 0:01:35.8]} 20... Ne3 {[%clk 0:02:29.3]}
21. Bxc5 {[%clk 0:01:23.8]} 21... Qd7 {[%clk 0:02:29.5]} 22. Bxf8 {[%clk
0:00:31.3]} 22... Rxf8 {[%clk 0:02:04.3]} 23. Qe1 {[%clk 0:00:18.4]} 23... Nxg2
{[%clk 0:01:53.9]} 24. Kxg2 {[%clk 0:00:15.5]} 24... f5 {[%clk 0:01:54.4]} 25.
Nxd4 {[%clk 0:00:12.7]} 25... Bxd4 {[%clk 0:01:55.2]} 26. Rf3 {[%clk 0:00:11.8]}
26... fxe4 {[%clk 0:01:54.6]} 27. dxe4 {[%clk 0:00:13.7]} 27... Bg7 {[%clk
0:01:26.1]} 28. Rd3 {[%clk 0:00:14]} 28... Qf7 {[%clk 0:01:04.2]} 29. Kh2 {[%clk
0:00:13.9]} 29... e5 {[%clk 0:01:04.1]} 30. Rf3 {[%clk 0:00:12]} 30... Qd7
{[%clk 0:00:48.7]} 31. Rd3 {[%clk 0:00:09.7]} 31... Qe6 {[%clk 0:00:35.4]} 32.
Qd2 {[%clk 0:00:07.2]} 32... exf4 {[%clk 0:00:34.5]} 33. gxf4 {[%clk 0:00:07.5]}
33... Rxf4 {[%clk 0:00:26.7]} 34. Rd8+ {[%clk 0:00:05.9]} 34... Rf8 {[%clk
0:00:27.3]} 35. Rxf8+ {[%clk 0:00:06.9]} 35... Bxf8 {[%clk 0:00:28.4]} 36. Rd4
{[%clk 0:00:07.3]} 36... Qe5+ {[%clk 0:00:24.2]} 37. Kg1 {[%clk 0:00:07.6]}
37... Bc5 {[%clk 0:00:24.1]} 38. c3 {[%clk 0:00:09.2]} 38... Bxd4+ {[%clk
0:00:25]} 39. cxd4 {[%clk 0:00:11.1]} 39... Qxe4 {[%clk 0:00:26.1]} 40. Kf1
{[%clk 0:00:09.4]} 40... Qf3+ {[%clk 0:00:24.1]} 41. Ke1 {[%clk 0:00:09.4]}
41... Qxb3 {[%clk 0:00:25.5]} 42. Qf4 {[%clk 0:00:08.5]} 42... Qe6+ {[%clk
0:00:25.8]} 43. Kd2 {[%clk 0:00:09.3]} 43... Bd5 {[%clk 0:00:26.8]} 44. Qc7
{[%clk 0:00:09.2]} 44... Qc6 {[%clk 0:00:17.5]} 45. Qd8+ {[%clk 0:00:09.8]}
45... Kg7 {[%clk 0:00:19]} 46. h4 {[%clk 0:00:11.4]} 46... Be6 {[%clk
0:00:16.4]} 47. h5 {[%clk 0:00:10.8]} 47... Qd5 {[%clk 0:00:17]} 48. Qe7+ {[%clk
0:00:11.8]} 48... Kh6 {[%clk 0:00:18.2]} 49. Qf8+ {[%clk 0:00:11.9]} 49... Kxh5
{[%clk 0:00:18.2]} 50. Ke3 {[%clk 0:00:10.9]} 50... Bf5 {[%clk 0:00:18.8]} 51.
Qb8 {[%clk 0:00:08.7]} 51... Qe4+ {[%clk 0:00:19.3]} 52. Kd2 {[%clk 0:00:09.5]}
52... Qxd4+ {[%clk 0:00:20.5]} 53. Ke2 {[%clk 0:00:10.4]} 53... Bg4+ {[%clk
0:00:21.1]} 54. Kf1 {[%clk 0:00:09.8]} 54... Qd1+ {[%clk 0:00:21.5]} 55. Kf2
{[%clk 0:00:11]} 55... Qe2+ {[%clk 0:00:22.4]} 56. Kg3 {[%clk 0:00:10]} 56...
Qf3+ {[%clk 0:00:21]} 57. Kh2 {[%clk 0:00:11]} 57... Kh4 {[%clk 0:00:20.8]} 58.
Qd8+ {[%clk 0:00:11.1]} 58... g5 {[%clk 0:00:21.9]} 59. Qd2 {[%clk 0:00:08.8]}
59... Qe2+ {[%clk 0:00:22.5]} 60. Qxe2 {[%clk 0:00:09.7]} 60... Bxe2 {[%clk
0:00:24.2]} 0-1